bitfinex-derivatives/quotes_BNBF0:USTF0_20250630
["timestamp","ask_amount","ask_price","bid_price","bid_amount"]
[1751252018189,0.26545331,655.76,655.12,2.216]
[1751252018490,0.26545331,655.76,655.13,1.10734847]
[1751252018785,0.26545331,655.76,655.12,2.216]
[1751252018990,0.26545331,655.76,655.13,1.10733292]
[1751252019185,0.26545331,655.76,655.13,2.208]
[1751252020987,0.26545331,655.76,655.14,1.10704646]
[1751252021291,0.26545331,655.76,655.15,1.10704646]
[1751252021590,0.26545331,655.76,655.13,2.208]
[1751252021788,0.26545331,655.76,655.14,1.10692093]
[1751252021987,0.26545331,655.76,655.15,1.10692093]
[1751252022190,0.26545331,655.76,655.13,2.208]
[1751252022385,0.26545331,655.76,655.14,1.10682361]
[1751252022589,0.26545331,655.76,655.15,1.10682361]
[1751252022788,0.26545331,655.76,655.13,2.208]
[1751252022988,0.26545331,655.76,655.14,1.10681125]
[1751252023287,0.26545331,655.76,655.15,1.10681125]
[1751252023492,0.26545331,655.76,655.13,2.208]
[1751252023690,0.26545331,655.76,655.14,1.10671199]
[1751252023990,0.26545331,655.76,655.13,2.208]
[1751252024192,0.26545331,655.76,655.14,1.10671199]
[1751252024490,0.26545331,655.76,655.13,2.208]
[1751252024690,0.26545331,655.76,655.14,1.10662105]
[1751252024891,0.26545331,655.76,655.13,2.208]
[1751252025094,0.26545331,655.76,655.14,1.10662105]
[1751252025294,0.26545331,655.76,655.13,2.208]
[1751252025593,0.26545331,655.76,655.14,1.10653172]
[1751252025792,0.26545331,655.76,655.15,1.10653172]
[1751252025993,0.26545331,655.76,655.16,1.10653172]
[1751252026290,0.26545331,655.76,655.13,2.208]
[1751252026495,0.26545331,655.76,655.14,1.10646427]
[1751252026695,0.26545331,655.76,655.13,2.208]
[1751252026898,0.26545331,655.76,655.14,1.10653602]
[1751252027092,0.26545331,655.76,655.13,2.208]
[1751252030196,0.26545331,655.76,655.14,2.756]
[1751252040404,0.26545331,655.76,655.15,2.05]
[1751252065524,0.26545331,655.76,655.14,2.756]
[1751252069228,0.26545331,655.76,655.15,3.187]
[1751252075234,0.26545331,655.76,655.16,1.10721374]
[1751252075432,0.26545331,655.76,655.17,1.10721374]
[1751252075633,0.26545331,655.76,655.18,1.10721374]
[1751252075833,0.26545331,655.76,655.15,3.187]
[1751252076034,0.26545331,655.76,655.16,1.10718749]
[1751252076333,0.26545331,655.76,655.17,1.10718749]
[1751252076530,0.26545331,655.76,655.15,3.187]
[1751252076734,0.26545331,655.76,655.16,1.10716661]
[1751252077031,0.26545331,655.76,655.17,1.10716661]
[1751252077331,0.26545331,655.76,655.18,1.10716661]
[1751252077634,0.26545331,655.76,655.15,3.187]
[1751252077834,0.26545331,655.76,655.16,1.66001872]
[1751252078135,0.26545331,655.76,655.17,1.10710362]
[1751252078330,0.26545331,655.76,655.18,1.10710362]
[1751252078534,0.26545331,655.76,655.19,1.10710362]
[1751252078735,0.26545331,655.76,655.2,1.10710362]
[1751252078933,0.26545331,655.76,655.21,1.10710362]
[1751252079236,0.26545331,655.76,655.22,1.10710362]
[1751252079532,0.26545331,655.76,655.15,3.187]
[1751252079731,0.26545331,655.76,655.16,1.10680008]
[1751252079935,0.26545331,655.76,655.17,1.10680008]
[1751252080136,0.26545331,655.76,655.18,1.10680008]
[1751252080432,0.26545331,655.76,655.19,1.10680008]
[1751252080634,0.26545331,655.76,655.2,1.10680008]
[1751252080837,0.26545331,655.76,655.21,1.10680008]
[1751252081038,0.26545331,655.76,655.15,3.187]
[1751252081238,0.26545331,655.76,655.16,1.65951965]
[1751252081438,0.26545331,655.76,655.17,1.1067667]
[1751252081638,0.26545331,655.76,655.18,1.65947932]
[1751252081837,0.26545331,655.76,655.19,1.65947932]
[1751252082035,0.26545331,655.76,655.2,1.1067667]
[1751252082238,0.26545331,655.76,655.21,1.1067667]
[1751252082436,0.26545331,655.76,655.15,3.187]
[1751252082640,0.26545331,655.76,655.16,1.65933145]
[1751252082836,0.26545331,655.76,655.17,1.65933145]
[1751252083038,0.26545331,655.76,655.18,1.65933145]
[1751252083241,0.26545331,655.76,655.19,1.10665939]
[1751252083438,0.26545331,655.76,655.2,1.10665939]
[1751252083742,0.26545331,655.76,655.21,1.10665939]
[1751252084044,0.26545331,655.76,655.15,3.187]
[1751252084240,0.26545331,655.76,655.16,1.65926791]
[1751252084439,0.26545331,655.76,655.17,1.65926791]
[1751252084638,0.26545331,655.76,655.18,1.65926791]
[1751252084842,0.26545331,655.76,655.15,3.187]
[1751252084843,0.26545331,655.76,655.19,1.10663003]
[1751252085044,0.26545331,655.76,655.2,1.10663003]
[1751252085339,0.26545331,655.76,655.21,1.10663003]
[1751252085542,0.26545331,655.76,655.15,3.187]
[1751252085742,0.26545331,655.76,655.16,1.10642049]
[1751252085939,0.26545331,655.76,655.15,3.187]
[1751252085940,0.26545331,655.76,655.17,1.65899447]
[1751252086140,0.26545331,655.76,655.18,1.65899447]
[1751252086340,0.26545331,655.76,655.19,1.10642049]
[1751252086545,0.26545331,655.76,655.15,3.187]
[1751252086743,0.26545331,655.76,655.16,1.65889076]
[1751252086944,0.26545331,655.76,655.17,1.65889076]
[1751252087142,0.26545331,655.76,655.18,1.65889076]
[1751252087341,0.26545331,655.76,655.19,1.10634859]
[1751252087546,0.26545331,655.76,655.19,2.72]
[1751252093646,0.26545331,655.76,655.2,0.55216689]
[1751252093850,0.26545331,655.76,655.21,0.55216689]
[1751252094050,0.26545331,655.76,655.19,2.72]
[1751252094346,0.26545331,655.76,655.2,0.55227111]
[1751252094547,0.26545331,655.76,655.21,0.55227111]
[1751252094749,0.26545331,655.76,655.19,2.72]
[1751252094951,0.26545331,655.76,655.2,0.55220277]
[1751252095248,0.26545331,655.76,655.19,2.72]
[1751252095446,0.26545331,655.76,655.2,0.55214691]
[1751252095651,0.26545331,655.76,655.19,2.72]
[1751252095952,0.26545331,655.76,655.2,0.55214741]
[1751252096154,0.26545331,655.76,655.19,2.72]
[1751252100249,0.26545331,655.76,655.2,1.10561074]
[1751252100455,0.26545331,655.76,655.21,1.10561074]
[1751252100655,0.26545331,655.76,655.22,1.10561074]
[1751252100959,0.26545331,655.76,655.23,1.10561074]
[1751252101152,0.26545331,655.76,655.24,1.10561074]
[1751252101351,0.26545331,655.76,655.25,1.10561074]
[1751252101651,0.26545331,655.76,655.26,4.35661074]
[1751252101851,0.26545331,655.76,655.27,1.10561074]
[1751252102052,0.26545331,655.76,655.28,1.10561074]
[1751252102251,0.26545331,655.76,655.26,3.251]
[1751252102556,0.26545331,655.76,655.27,1.1053151]
[1751252102757,0.26545331,655.76,655.26,3.251]
[1751252103058,0.26545331,655.76,655.27,1.1053151]
[1751252103258,0.26545331,655.76,655.26,3.251]
[1751252103552,0.26545331,655.76,655.27,1.1052522]
[1751252103756,3.81711719,656.24,655.26,3.251]
[1751252103952,0.26548065,655.68,655.26,3.251]
[1751252104453,0.26548166,655.68,655.26,3.251]
[1751252126772,0.26548166,655.68,655.19,2.72]
[1751252129373,0.26548166,655.68,655.2,2.634]
[1751252138279,0.26548166,655.68,655.21,1.938]
[1751252155993,0.26548166,655.68,655.22,3.379]
[1751252183119,0.26548166,655.68,655.21,1.938]
[1751252187027,0.26548166,655.68,655.22,2.73]
[1751252196231,0.26548166,655.68,655.23,2.947]
[1751252204642,0.26548166,655.68,655.24,3.003]
[1751252211046,3.81711719,655.84,655.24,3.003]
[1751252211546,3.81711719,655.88,655.24,3.003]
[1751252213648,3.81711719,655.9,655.24,3.003]
[1751252214152,3.81711719,655.8,655.24,3.003]
[1751252214651,3.81711719,655.75,655.24,3.003]
[1751252216355,3.81711719,655.76,655.24,3.003]
[1751252216655,0.26562452,655.63,655.2,2.523]
[1751252219261,0.26562452,655.63,655.2,5.15]
[1751252228867,0.26562452,655.63,655.2,2.627]
[1751252241281,0.26562452,655.63,654.8,2.491]
[1751252249889,0.26562452,655.63,654.6,3.109]
[1751252252789,0.26562452,655.63,654.6,5.862]
[1751252278114,0.26562452,655.63,653.95,0.26578682]
[1751252278413,0.26562452,655.63,653.96,1.12484127]
[1751252278613,0.26562452,655.63,653.97,1.12484127]
[1751252278811,0.26562452,655.63,653.61,1.40638322]
[1751252279010,0.26562452,655.63,653.62,1.70941723]
[1751252279210,0.26562452,655.63,653.63,1.70941723]
[1751252279413,0.26562452,655.63,653.64,1.70941723]
[1751252279610,0.26562452,655.63,653.65,1.70941723]
[1751252279813,0.26562452,655.63,653.66,1.70941723]
[1751252280010,0.26562452,655.63,653.67,1.70941723]
[1751252280214,0.26562452,655.63,653.68,1.70941723]
[1751252280411,0.26562452,655.63,653.69,1.70941723]
[1751252280613,0.26562452,655.63,653.7,1.70941723]
[1751252280809,0.26562452,655.63,653.71,1.70941723]
[1751252281012,0.26562452,655.63,653.72,1.70941723]
[1751252281214,0.26562452,655.63,653.73,1.70941723]
[1751252281413,0.26562452,655.63,653.74,0.5845485]
[1751252281611,0.26562452,655.63,653.75,0.5845485]
[1751252281809,0.26562452,655.63,653.76,0.5845485]
[1751252282015,0.26562452,655.63,653.77,0.5845485]
[1751252282312,0.26562452,655.63,653.78,0.5845485]
[1751252282615,0.26562452,655.63,653.79,0.5845485]
[1751252282811,0.26562452,655.63,653.8,0.5845485]
[1751252283115,0.26562452,655.63,653.81,0.5845485]
[1751252283316,0.26562452,655.63,653.82,0.5845485]
[1751252283516,0.26562452,655.63,653.83,0.5845485]
[1751252283815,0.26562452,655.63,653.84,0.5845485]
[1751252284011,0.26562452,655.63,653.85,0.5845485]
[1751252284216,0.26562452,655.63,653.86,0.5845485]
[1751252284417,0.26562452,655.63,653.87,0.5845485]
[1751252284617,0.26562452,655.63,653.88,0.5845485]
[1751252284813,0.26562452,655.63,653.89,0.5845485]
[1751252285012,0.26562452,655.63,653.9,0.5845485]
[1751252285216,0.26562452,655.63,653.91,0.5845485]
[1751252285513,0.26562452,655.63,653.73,2.888]
[1751252285717,0.26562452,655.63,653.74,1.70518249]
[1751252286013,0.26562452,655.63,653.75,0.58618034]
[1751252286314,0.26562452,655.63,653.76,0.58618034]
[1751252286517,0.26562452,655.63,653.77,0.58618034]
[1751252286717,0.26562452,655.63,653.78,0.58618034]
[1751252286917,0.26562452,655.63,653.79,0.58618034]
[1751252287113,0.26562452,655.63,653.73,2.888]
[1751252287414,0.26562452,655.63,653.74,1.11878151]
[1751252287618,0.26562452,655.63,653.75,1.11878151]
[1751252287814,0.26562452,655.63,653.76,1.11878151]
[1751252288013,0.26562452,655.63,653.77,1.11878151]
[1751252288217,0.26562452,655.63,653.73,2.888]
[1751252288415,0.26562452,655.63,653.74,1.11856227]
[1751252288614,0.26562452,655.63,653.75,1.11856227]
[1751252288815,0.26562452,655.63,653.76,1.11856227]
[1751252289018,0.26562452,655.63,653.77,1.11856227]
[1751252289218,0.26562452,655.63,653.73,2.888]
[1751252289416,0.26562452,655.63,653.74,1.11835299]
[1751252289614,0.26562452,655.63,653.75,1.11835299]
[1751252289814,0.26562452,655.63,653.76,1.11835299]
[1751252290018,0.26562452,655.63,653.77,1.11835299]
[1751252290217,0.26562452,655.63,653.73,2.888]
[1751252290418,0.26562452,655.63,653.74,1.11835299]
[1751252290618,0.26562452,655.63,653.75,1.11835299]
[1751252290819,0.26562452,655.63,653.76,1.11835299]
[1751252291115,0.26562452,655.63,653.73,2.888]
[1751252291716,0.26562452,655.63,653.74,1.70383276]
[1751252291916,0.26562452,655.63,653.75,0.58562489]
[1751252292115,0.26562452,655.63,653.73,2.888]
[1751252292419,0.26562452,655.63,653.74,1.70380687]
[1751252292618,0.26562452,655.63,653.75,0.58559905]
[1751252292820,0.26562452,655.63,653.73,2.888]
[1751252293019,0.26562452,655.63,653.74,1.7037917]
[1751252293221,0.26562452,655.63,653.75,0.58558541]
[1751252293520,0.26562452,655.63,653.73,2.888]
[1751252293715,0.26562452,655.63,653.74,1.70383279]
[1751252293917,0.26562452,655.63,653.73,2.888]
[1751252294218,0.26562452,655.63,653.74,1.11824538]
[1751252294417,0.26562452,655.63,653.73,2.888]
[1751252294618,0.26562452,655.63,653.74,1.11830462]
[1751252294918,0.26562452,655.63,653.73,2.888]
[1751252295117,0.26562452,655.63,653.74,1.11830462]
[1751252295315,0.26562452,655.63,653.73,2.888]
[1751252295620,3.81711719,655.5,653.74,1.11838469]
[1751252295822,3.81711719,655.5,653.73,2.888]
[1751252296122,3.81711719,655.47,653.74,1.11838464]
[1751252296316,3.81711719,655.47,653.73,2.888]
[1751252296519,3.81711719,655.46,653.74,1.11848591]
[1751252296721,3.81711719,655.46,653.73,2.888]
[1751252297023,3.81711719,655.43,653.74,1.11848591]
[1751252297219,3.81711719,655.43,653.73,2.888]
[1751252297520,3.81711719,655.43,653.74,1.11848591]
[1751252297721,3.81711719,655.42,653.73,2.888]
[1751252297920,3.81711719,655.42,653.74,1.11873568]
[1751252298128,3.81711719,655.42,653.73,2.888]
[1751252298721,3.81711719,655.41,653.73,2.888]
[1751252298923,3.81711719,655.41,653.74,1.11881873]
[1751252299125,3.81711719,655.41,653.73,2.888]
[1751252299320,3.81711719,655.42,653.74,1.11881878]
[1751252299526,3.81711719,655.42,653.73,2.888]
[1751252299725,3.81711719,655.23,653.74,1.11892902]
[1751252300022,3.81711719,655.23,653.73,2.888]
[1751252300224,3.81711719,655.14,653.73,2.888]
[1751252300625,3.81711719,655.14,653.74,1.11897714]
[1751252300922,3.81711719,655.31,653.73,2.888]
[1751252301123,3.81711719,655.31,653.74,1.11897714]
[1751252301327,3.81711719,655.31,653.73,2.888]
[1751252302223,3.81711719,655.31,653.7,2.419]
[1751252302428,3.81711719,655.3,653.71,1.11910319]
[1751252302628,3.81711719,655.3,653.72,1.11910319]
[1751252302828,3.81711719,655.3,653.73,1.11910319]
[1751252303124,3.81711719,655.3,653.74,1.11909514]
[1751252303428,3.81711719,655.38,653.75,1.11909514]
[1751252303626,3.81711719,655.38,653.76,1.11909514]
[1751252303825,3.81711719,655.38,653.77,1.11909514]
[1751252304026,3.81711719,655.38,653.78,1.11909514]
[1751252304226,3.81711719,655.38,653.79,1.11909514]
[1751252304430,3.81711719,655.39,653.8,1.11909514]
[1751252304630,3.81711719,655.39,653.81,1.11909514]
[1751252304931,3.81711719,655.39,653.82,1.11909514]
[1751252305125,3.81711719,655.39,653.7,2.419]
[1751252305324,3.81711719,655.39,653.71,1.70490139]
[1751252305525,3.81711719,655.38,653.72,1.70490139]
[1751252305729,3.81711719,655.38,653.73,1.70490139]
[1751252305928,3.81711719,655.38,653.74,1.70490139]
[1751252306129,3.81711719,655.38,653.75,1.70490139]
[1751252306332,3.81711719,655.38,653.76,1.70486863]
[1751252306626,3.81711719,655.38,653.72,2.61]
[1751252306627,3.81711719,655.41,653.77,1.1191278]
[1751252306831,3.81711719,655.41,653.78,1.1191278]
[1751252307132,3.81711719,655.41,653.79,1.1191278]
[1751252307335,3.81711719,655.41,653.72,2.61]
[1751252307529,3.81711719,655.41,653.73,1.70487748]
[1751252307834,3.81711719,655.41,653.74,1.70487748]
[1751252308131,3.81711719,655.41,653.75,1.70487748]
[1751252308328,3.81711719,655.41,653.76,1.70487748]
[1751252308531,3.81711719,655.41,653.77,1.11916368]
[1751252308730,3.81711719,655.41,653.78,1.11916368]
[1751252308930,3.81711719,655.41,653.79,1.11916368]
[1751252309134,3.81711719,655.41,653.72,2.61]
[1751252309334,3.81711719,655.41,653.73,1.70484177]
[1751252309534,3.81711719,655.41,653.74,1.70484177]
[1751252309735,3.81711719,655.41,653.75,1.70484177]
[1751252309936,3.81711719,655.41,653.76,1.11915073]
[1751252310134,3.81711719,655.37,653.77,1.11915073]
[1751252310334,3.81711719,655.37,653.78,1.11915073]
[1751252310637,3.81711719,655.22,653.79,1.11915073]
[1751252310838,3.81711719,655.22,653.72,2.61]
[1751252311137,3.81711719,655.22,653.73,1.70480721]
[1751252311337,3.81711719,655.22,653.74,1.11914887]
[1751252311537,3.81711719,655.22,653.75,1.11914887]
[1751252311735,3.81711719,655.22,653.76,1.11914887]
[1751252312037,3.81711719,655.22,653.77,1.11914887]
[1751252312237,3.81711719,655.22,653.78,1.11914887]
[1751252312432,3.81711719,655.22,653.79,1.11914887]
[1751252312633,3.81711719,655.22,653.72,2.61]
[1751252312935,3.81711719,655.22,653.73,1.70482145]
[1751252313136,3.81711719,655.22,653.74,1.11917907]
[1751252313434,3.81711719,655.26,653.75,1.11917907]
[1751252313632,3.81711719,655.26,653.76,1.11917907]
[1751252313835,5.34396407,655.55,653.77,1.70482092]
[1751252314038,5.34396407,655.55,653.78,1.70482092]
[1751252314236,5.34396407,655.55,653.79,1.70482092]
[1751252314535,0.26562452,655.63,653.8,1.70482092]
[1751252314835,0.26562452,655.63,653.81,1.70482092]
[1751252315133,0.26562452,655.63,653.82,1.70482092]
[1751252315335,0.26562452,655.63,653.83,1.70482092]
[1751252315537,0.26562452,655.63,653.84,1.70482092]
[1751252315732,0.26562452,655.63,653.85,1.70486161]
[1751252315937,0.26562452,655.63,653.86,1.70486161]
[1751252316135,0.26562452,655.63,653.87,1.70486161]
[1751252316336,0.26562452,655.63,653.88,1.70486161]
[1751252316535,0.26562452,655.63,653.89,1.70486161]
[1751252316839,0.26562452,655.63,653.9,1.70486161]
[1751252317139,0.26562452,655.63,653.91,1.11921976]
[1751252317337,0.26562452,655.63,653.92,1.11921976]
[1751252317543,0.26562452,655.63,653.93,1.11921976]
[1751252317741,0.26562452,655.63,653.7,2.419]
[1751252318041,0.26562452,655.63,653.71,1.70506764]
[1751252318237,0.26562452,655.63,653.72,1.70506764]
[1751252318441,0.26562452,655.63,653.73,1.70506764]
[1751252318638,0.26562452,655.63,653.74,1.70506764]
[1751252318839,0.26562452,655.63,653.75,1.70506764]
[1751252319038,0.26562452,655.63,653.76,1.70506764]
[1751252319237,0.26562452,655.63,653.77,1.70506764]
[1751252319442,0.26562452,655.63,653.78,1.70506764]
[1751252319738,0.26562452,655.63,653.79,1.70506764]
[1751252320047,0.26562452,655.63,653.8,1.70506764]
[1751252320241,0.26562452,655.63,653.81,1.70506764]
[1751252320440,0.26562452,655.63,653.82,1.70506764]
[1751252320638,0.26562452,655.63,653.83,1.70506764]
[1751252320837,0.26562452,655.63,653.84,1.70506764]
[1751252321041,0.26562452,655.63,653.85,1.70506764]
[1751252321242,0.26562452,655.63,653.86,1.70506764]
[1751252321442,0.26562452,655.63,653.87,1.70506764]
[1751252321639,0.26562452,655.63,653.88,1.70506764]
[1751252321941,0.26562452,655.63,653.89,1.70506764]
[1751252322142,0.26562452,655.63,653.9,1.70506764]
[1751252322343,0.26562452,655.63,653.91,1.11936001]
[1751252322539,0.26562452,655.63,653.81,3.556]
[1751252322540,0.26562452,655.63,653.92,1.11936001]
[1751252322744,0.26562452,655.63,653.81,3.556]
[1751252322944,0.26562452,655.63,653.82,1.70582384]
[1751252323142,0.26562452,655.63,653.83,1.70582384]
[1751252323345,0.26562452,655.63,653.84,1.70582384]
[1751252323546,0.26562452,655.63,653.85,1.70582384]
[1751252323846,3.81711719,655.61,653.86,1.1199086]
[1751252324047,3.81711719,655.61,653.87,1.1199086]
[1751252324247,3.81711719,655.61,653.81,3.556]
[1751252324448,3.81711719,655.61,653.82,1.70615833]
[1751252324649,3.81711719,655.61,653.83,1.70615833]
[1751252324948,3.81711719,655.58,653.84,1.70615833]
[1751252325149,3.81711719,655.58,653.85,1.70615833]
[1751252325349,3.81711719,655.58,653.86,1.12016741]
[1751252325550,3.81711719,655.58,653.87,1.12016741]
[1751252325845,3.81711719,655.57,653.81,3.556]
[1751252326049,3.81711719,655.57,653.82,1.70637487]
[1751252326349,3.81711719,655.57,653.83,1.70637487]
[1751252326545,3.81711719,655.56,653.84,1.70637487]
[1751252326846,3.81711719,655.56,653.85,1.70637487]
[1751252327044,3.81711719,655.54,653.86,1.12030773]
[1751252327250,3.81711719,655.54,653.81,3.556]
[1751252327546,3.81711719,655.51,653.82,1.70676297]
[1751252327851,3.81711719,655.51,653.83,1.70676297]
[1751252328047,3.81711719,655.51,653.84,1.70676297]
[1751252328251,3.81711719,655.51,653.85,1.70676297]
[1751252328448,3.81711719,655.51,653.86,1.12061364]
[1751252328654,3.81711719,655.51,653.87,1.12061364]
[1751252328848,3.81711719,655.51,653.81,3.556]
[1751252329047,3.81711719,655.51,653.82,1.70715281]
[1751252329253,3.81711719,655.51,653.83,1.70715281]
[1751252329449,3.81711719,655.51,653.84,3.86015281]
[1751252329653,3.81711719,655.51,653.85,1.70715281]
[1751252329851,3.81711719,655.51,653.86,1.70715281]
[1751252330148,3.81711719,655.51,653.87,1.12090863]
[1751252330452,3.81711719,655.51,653.88,1.12090863]
[1751252330752,3.81711719,655.5,653.84,2.153]
[1751252330952,3.81711719,655.5,653.85,1.70765564]
[1751252331152,3.81711719,655.5,653.86,1.70765564]
[1751252331353,3.81711719,655.5,653.87,1.12127718]
[1751252331553,3.81711719,655.5,653.88,1.12127718]
[1751252331753,3.81711719,655.5,653.89,1.12127718]
[1751252331949,3.81711719,655.5,653.84,2.153]
[1751252332151,3.81711719,655.5,653.85,1.70793253]
[1751252332355,3.81711719,655.5,653.86,1.70793253]
[1751252332556,3.81711719,655.49,653.87,1.12148141]
[1751252332756,3.81711719,655.49,653.88,1.12148141]
[1751252333057,3.81711719,655.49,653.89,1.12148141]
[1751252333353,3.81711719,655.32,653.9,1.12169386]
[1751252333556,3.81711719,655.32,653.84,2.153]
[1751252333757,3.81711719,655.14,653.85,1.12186837]
[1751252333956,3.81711719,655.14,653.86,1.12186837]
[1751252334258,3.81711719,655.14,653.87,1.12186837]
[1751252334555,3.81711719,655.14,653.88,1.12186837]
[1751252334758,3.81711719,655.12,653.89,1.12186837]
[1751252334958,3.81711719,655.12,653.9,1.12186837]
[1751252335158,3.81711719,655.12,653.91,1.12186837]
[1751252335458,3.81711719,655.12,653.84,2.153]
[1751252335656,3.81711719,655.12,653.85,1.1223205]
[1751252335855,3.81711719,655.11,653.86,1.1223205]
[1751252336056,3.81711719,655.11,653.87,1.1223205]
[1751252336259,3.81711719,655.16,653.88,1.1223205]
[1751252336456,3.81711719,655.16,653.89,1.1223205]
[1751252336661,3.81711719,655.16,653.9,1.1223205]
[1751252336858,3.81711719,655.15,653.91,1.1223205]
[1751252337060,3.81711719,655.15,653.92,1.1223205]
[1751252337259,3.81711719,655.14,653.84,2.153]
[1751252337458,3.81711719,655.14,653.85,1.70984859]
[1751252337661,3.81711719,655.14,653.84,2.153]
[1751252337662,3.81711719,655.14,653.86,1.12285918]
[1751252337858,3.81711719,655.14,653.87,1.12285918]
[1751252338058,3.81711719,655.14,653.88,1.12285918]
[1751252338258,3.81711719,655.12,653.89,1.12285918]
[1751252338457,3.81711719,655.12,653.9,1.12285918]
[1751252338760,3.81711719,655.12,653.91,1.12285918]
[1751252338960,3.81711719,655.12,653.92,1.12285918]
[1751252339260,3.81711719,655.12,653.93,1.12285918]
[1751252339456,3.81711719,655.12,653.94,1.12285918]
[1751252339660,3.81711719,655.12,653.84,2.153]
[1751252339857,3.81711719,655.12,653.85,1.12318558]
[1751252340059,3.81711719,655.01,653.86,1.12318558]
[1751252340257,3.81711719,655.01,653.87,1.12318558]
[1751252340460,3.81711719,655.0,653.88,1.12318558]
[1751252340659,3.81711719,655.0,653.89,1.12318558]
[1751252340958,3.81711719,655.0,653.9,1.12318558]
[1751252341159,3.81711719,655.0,653.91,1.12318558]
[1751252341358,3.81711719,655.0,653.92,1.12318558]
[1751252341558,3.81711719,655.0,653.93,1.12318558]
[1751252341762,3.81711719,655.0,653.94,1.12318558]
[1751252341964,3.81711719,655.01,653.84,2.153]
[1751252342262,3.81711719,655.01,653.85,1.12320913]
[1751252342460,3.81711719,654.97,653.86,1.12320913]
[1751252342661,3.81711719,654.97,653.87,1.71055576]
[1751252342961,3.81711719,654.97,653.88,1.71055576]
[1751252343163,5.34396407,655.23,653.89,1.12320913]
[1751252343360,5.34396407,655.23,653.84,2.153]
[1751252343361,5.34396407,655.23,653.9,1.12320913]
[1751252343563,3.81711719,655.26,653.91,1.12320913]
[1751252343759,3.81711719,655.26,653.92,1.12320913]
[1751252343963,3.81711719,655.26,653.93,1.12320913]
[1751252344162,3.81711719,655.26,653.94,1.12320913]
[1751252344361,3.81711719,655.26,653.95,1.12320913]
[1751252344563,3.81711719,655.26,653.96,1.12320913]
[1751252344765,3.81711719,655.26,653.84,2.153]
[1751252345064,3.81711719,655.26,653.85,1.71089171]
[1751252345261,3.81711719,655.26,653.86,1.71089171]
[1751252345465,3.81711719,655.26,653.87,1.71089171]
[1751252345764,3.81711719,655.19,653.88,1.71089171]
[1751252345965,3.81711719,655.19,653.89,1.71089171]
[1751252346160,3.81711719,655.3,653.9,1.71089171]
[1751252346365,3.81711719,655.3,653.91,0.58756095]
[1751252346566,3.81711719,655.3,653.92,0.58756095]
[1751252346768,3.81711719,655.3,653.93,0.58756095]
[1751252347068,3.81711719,655.3,653.84,2.153]
[1751252347368,3.81711719,655.3,653.85,1.71122271]
[1751252347667,3.81711719,655.3,653.86,1.71122271]
[1751252347866,3.81711719,655.3,653.87,1.71122271]
[1751252348060,3.81711719,655.3,653.88,1.71122271]
[1751252348264,3.81711719,655.3,653.89,1.71122271]
[1751252348463,3.81711719,655.3,653.9,1.71122271]
[1751252348765,3.81711719,655.3,653.91,1.71122271]
[1751252348964,3.81711719,655.3,653.92,0.58769521]
[1751252349268,3.81711719,655.31,653.93,0.58769521]
[1751252349567,3.81711719,655.31,653.94,0.58769521]
[1751252349869,3.81711719,655.26,653.84,2.153]
[1751252350168,3.81711719,655.26,653.85,1.71151175]
[1751252350364,3.81711719,655.14,653.86,1.71151175]
[1751252350664,3.81711719,655.14,653.87,1.71157178]
[1751252350864,3.81711719,655.17,653.88,1.12363568]
[1751252351068,3.81711719,655.17,653.89,1.12363568]
[1751252351367,3.81711719,655.18,653.9,1.12363568]
[1751252351562,3.81711719,655.18,653.91,1.12363568]
[1751252351768,3.81711719,655.18,653.92,1.12363568]
[1751252352063,3.81711719,655.18,653.93,1.12363568]
[1751252352266,3.81711719,655.18,653.84,2.153]
[1751252352469,3.81711719,655.18,653.85,1.71174645]
[1751252352664,3.81711719,655.18,653.86,1.71174645]
[1751252352865,3.81711719,655.18,653.87,1.71174645]
[1751252353069,3.81711719,655.22,653.88,1.71174645]
[1751252353266,3.81711719,655.22,653.89,1.12373285]
[1751252353569,3.81711719,655.24,653.9,1.12373285]
[1751252353770,3.81711719,655.24,653.91,1.12373285]
[1751252353970,3.81711719,655.24,653.92,1.12373285]
[1751252354170,3.81711719,655.24,653.93,1.12373285]
[1751252354368,3.81711719,655.24,653.94,1.12373285]
[1751252354570,3.81711719,655.24,653.95,1.12373285]
[1751252354771,3.81711719,655.24,653.96,1.12373285]
[1751252355069,3.81711719,655.24,653.97,1.12373285]
[1751252355272,3.81711719,655.24,653.98,1.12373285]
[1751252355572,3.81711719,655.24,653.99,1.12373285]
[1751252355773,3.81711719,655.24,654.0,1.12373285]
[1751252355973,3.81711719,655.24,653.93,2.679]
[1751252356173,3.81711719,655.08,653.94,1.12368144]
[1751252356373,3.81711719,655.08,653.95,1.12368144]
[1751252356673,3.81711719,655.09,653.96,1.12368144]
[1751252356973,3.81711719,655.09,653.97,1.12368144]
[1751252357173,3.81711719,655.09,653.93,2.679]
[1751252357174,3.81711719,655.09,653.98,1.12368144]
[1751252357370,3.81711719,655.09,653.99,1.12368144]